[Event "Early-Titled-Tuesday-Blitz-May-14-2024"]
[Site "Chess.com"]
[Date "2024.05.14"]
[Round "6"]
[White "Skatchkov_V"]
[Black "ViIIagra"]
[Result "1-0"]
[WhiteElo "2647"]
[BlackElo "2836"]
[TimeControl "180+1"]
[EndTime "9:07:57 PDT"]
[Termination "Skatchkov_V won by resignation"]

1. d4 {[%clk 0:03:00.9]} 1... d6 {[%clk 0:02:56.5]} 2. e4 {[%clk 0:03:00.3]}
2... g6 {[%clk 0:02:29.6]} 3. Nc3 {[%clk 0:02:57.3]} 3... c6 {[%clk 0:02:22.4]}
4. h4 {[%clk 0:02:53]} 4... Nf6 {[%clk 0:02:21.8]} 5. Be2 {[%clk 0:02:49.8]}
5... h5 {[%clk 0:02:16.7]} 6. Nf3 {[%clk 0:02:44.1]} 6... Bg7 {[%clk 0:02:13.1]}
7. Bg5 {[%clk 0:02:40.3]} 7... b5 {[%clk 0:02:12.1]} 8. a3 {[%clk 0:02:39.2]}
8... a6 {[%clk 0:02:12]} 9. Qd2 {[%clk 0:02:37.5]} 9... Qc7 {[%clk 0:02:04.6]}
10. e5 {[%clk 0:01:53.7]} 10... Ng4 {[%clk 0:02:02.4]} 11. exd6 {[%clk
0:01:46.2]} 11... exd6 {[%clk 0:01:59.7]} 12. Qf4 {[%clk 0:01:17.7]} 12... f5
{[%clk 0:01:40.8]} 13. Qg3 {[%clk 0:01:05.3]} 13... O-O {[%clk 0:01:00.9]} 14.
Bf4 {[%clk 0:01:05.4]} 14... Rd8 {[%clk 0:01:01.2]} 15. O-O {[%clk 0:00:54.1]}
15... Kh8 {[%clk 0:00:43.1]} 16. Ng5 {[%clk 0:00:48.6]} 16... Bxd4 {[%clk
0:00:36.9]} 17. Bxg4 {[%clk 0:00:40.9]} 17... fxg4 {[%clk 0:00:26.4]} 18. Rad1
{[%clk 0:00:40.2]} 18... c5 {[%clk 0:00:22.7]} 19. Nd5 {[%clk 0:00:33.5]} 19...
Qg7 {[%clk 0:00:20.8]} 20. c3 {[%clk 0:00:24.7]} 20... Be5 {[%clk 0:00:19.4]}
21. Bxe5 {[%clk 0:00:22.8]} 21... dxe5 {[%clk 0:00:20.3]} 22. Nb6 {[%clk
0:00:22.8]} 1-0

[Event "Early-Titled-Tuesday-Blitz-May-14-2024"]
[Site "Chess.com"]
[Date "2024.05.14"]
[Round "6"]
[White "maximnovik"]
[Black "SidArun"]
[Result "1-0"]
[WhiteElo "2528"]
[BlackElo "2351"]
[TimeControl "180+1"]
[EndTime "9:07:57 PDT"]
[Termination "maximnovik won by resignation"]

1. e4 {[%clk 0:03:00.3]} 1... c6 {[%clk 0:03:00.1]} 2. d4 {[%clk 0:02:59.9]}
2... d5 {[%clk 0:03:01]} 3. e5 {[%clk 0:03:00.5]} 3... c5 {[%clk 0:03:01]} 4.
dxc5 {[%clk 0:02:59.5]} 4... e6 {[%clk 0:03:00.8]} 5. c3 {[%clk 0:02:59.6]} 5...
Bxc5 {[%clk 0:02:59.6]} 6. Qg4 {[%clk 0:02:58.4]} 6... Ne7 {[%clk 0:02:59.8]} 7.
b4 {[%clk 0:02:56.7]} 7... Bb6 {[%clk 0:02:57.4]} 8. Qxg7 {[%clk 0:02:56.1]}
8... Rg8 {[%clk 0:02:57.3]} 9. Qxh7 {[%clk 0:02:56.2]} 9... d4 {[%clk
0:02:56.8]} 10. Nf3 {[%clk 0:02:53.7]} 10... Nbc6 {[%clk 0:02:49.9]} 11. Bg5
{[%clk 0:02:45.6]} 11... dxc3 {[%clk 0:02:44.1]} 12. Qxg8+ {[%clk 0:02:29.8]}
12... Nxg8 {[%clk 0:02:41.9]} 13. Bxd8 {[%clk 0:02:28.9]} 13... Bxd8 {[%clk
0:02:38.2]} 14. Nxc3 {[%clk 0:02:28]} 14... Nxb4 {[%clk 0:02:38.5]} 15. Bb5+
{[%clk 0:02:26.2]} 15... Kf8 {[%clk 0:02:37.5]} 16. O-O-O {[%clk 0:02:22.2]}
16... Be7 {[%clk 0:02:36.6]} 17. Kb2 {[%clk 0:02:12.9]} 17... a6 {[%clk
0:02:35.8]} 18. Bd7 {[%clk 0:02:11.1]} 18... Bxd7 {[%clk 0:02:32.9]} 19. Rxd7
{[%clk 0:02:10.8]} 19... b5 {[%clk 0:02:31.7]} 20. Rhd1 {[%clk 0:02:06.7]} 20...
Rc8 {[%clk 0:02:30.2]} 21. h4 {[%clk 0:01:46.3]} 21... Nh6 {[%clk 0:02:24.6]}
22. g3 {[%clk 0:01:44.7]} 22... a5 {[%clk 0:02:19.2]} 23. R1d2 {[%clk
0:01:41.6]} 23... Rc5 {[%clk 0:02:08.8]} 24. Ne4 {[%clk 0:01:37.2]} 24... Rc4
{[%clk 0:02:06.9]} 25. Nf6 {[%clk 0:01:33.1]} 25... a4 {[%clk 0:01:45.7]} 26. a3
{[%clk 0:01:29.9]} 26... Nc6 {[%clk 0:01:40.5]} 27. Rb7 {[%clk 0:01:23.6]} 27...
b4 {[%clk 0:01:40.1]} 28. axb4 {[%clk 0:01:20.6]} 28... Bxb4 {[%clk 0:01:40]}
29. Rc2 {[%clk 0:01:11.6]} 29... a3+ {[%clk 0:01:40.3]} 30. Kb1 {[%clk
0:01:11.3]} 30... Rxc2 {[%clk 0:00:56]} 31. Kxc2 {[%clk 0:01:11.3]} 31... a2
{[%clk 0:00:46.5]} 32. Kb2 {[%clk 0:01:11]} 32... Bc5 {[%clk 0:00:34.3]} 33.
Kxa2 {[%clk 0:01:09.1]} 33... Bxf2 {[%clk 0:00:34.4]} 34. g4 {[%clk 0:01:07.6]}
34... Bg3 {[%clk 0:00:27.6]} 35. h5 {[%clk 0:00:58.8]} 35... Kg7 {[%clk
0:00:19.8]} 36. g5 {[%clk 0:00:57.4]} 36... Nxe5 {[%clk 0:00:14.3]} 37. Ne8+
{[%clk 0:00:54.3]} 37... Kh7 {[%clk 0:00:12]} 38. Nxe5 {[%clk 0:00:53.4]} 1-0

[Event "Early-Titled-Tuesday-Blitz-May-14-2024"]
[Site "Chess.com"]
[Date "2024.05.14"]
[Round "6"]
[White "cristiano78"]
[Black "Incognizance"]
[Result "1-0"]
[WhiteElo "2250"]
[BlackElo "1980"]
[TimeControl "180+1"]
[EndTime "9:07:59 PDT"]
[Termination "cristiano78 won by resignation"]

1. d4 {[%clk 0:02:55.5]} 1... Nf6 {[%clk 0:02:59.9]} 2. c4 {[%clk 0:02:55.5]}
2... e6 {[%clk 0:02:59.3]} 3. Nf3 {[%clk 0:02:55.7]} 3... Bb4+ {[%clk
0:02:58.7]} 4. Bd2 {[%clk 0:02:55.7]} 4... Qe7 {[%clk 0:02:58.3]} 5. a3 {[%clk
0:02:55.7]} 5... Bxd2+ {[%clk 0:02:58.7]} 6. Nbxd2 {[%clk 0:02:55.2]} 6... O-O
{[%clk 0:02:59.6]} 7. e4 {[%clk 0:02:52.9]} 7... d6 {[%clk 0:02:56.4]} 8. Bd3
{[%clk 0:02:51.5]} 8... e5 {[%clk 0:02:56.4]} 9. d5 {[%clk 0:02:40.2]} 9... c5
{[%clk 0:02:54.1]} 10. O-O {[%clk 0:02:32.8]} 10... Bg4 {[%clk 0:02:53.9]} 11.
h3 {[%clk 0:02:28.1]} 11... Bxf3 {[%clk 0:02:53.6]} 12. Nxf3 {[%clk 0:02:26.5]}
12... Nbd7 {[%clk 0:02:52.3]} 13. b3 {[%clk 0:02:25.8]} 13... h6 {[%clk
0:02:45.7]} 14. Re1 {[%clk 0:02:22.7]} 14... Rfe8 {[%clk 0:02:44.8]} 15. Qd2
{[%clk 0:02:11.7]} 15... Nf8 {[%clk 0:02:43.7]} 16. b4 {[%clk 0:02:03.4]} 16...
b6 {[%clk 0:02:43.6]} 17. a4 {[%clk 0:02:01.5]} 17... Ng6 {[%clk 0:02:41.1]} 18.
a5 {[%clk 0:01:59]} 18... cxb4 {[%clk 0:02:28]} 19. axb6 {[%clk 0:01:56.9]}
19... axb6 {[%clk 0:02:23.7]} 20. Qxb4 {[%clk 0:01:53.5]} 20... Nd7 {[%clk
0:02:18]} 21. Qb5 {[%clk 0:01:50.9]} 21... Nc5 {[%clk 0:02:12.4]} 22. Bf1 {[%clk
0:01:48.3]} 22... Rxa1 {[%clk 0:02:09.1]} 23. Rxa1 {[%clk 0:01:47]} 23... Nxe4
{[%clk 0:02:09.2]} 24. Qxb6 {[%clk 0:01:46.5]} 24... Qd8 {[%clk 0:01:12.7]} 25.
Qc6 {[%clk 0:01:41.2]} 25... Ne7 {[%clk 0:01:08.5]} 26. Qb7 {[%clk 0:01:39.6]}
26... Qc8 {[%clk 0:01:00.6]} 27. Ra7 {[%clk 0:01:36.9]} 27... Qxb7 {[%clk
0:00:53.9]} 28. Rxb7 {[%clk 0:01:35.2]} 28... Nf5 {[%clk 0:00:54.2]} 29. Rc7
{[%clk 0:01:23.5]} 29... Re7 {[%clk 0:00:43.6]} 30. Rc8+ {[%clk 0:01:21]} 30...
Kh7 {[%clk 0:00:43.5]} 31. Bd3 {[%clk 0:01:20.8]} 31... Nfg3 {[%clk 0:00:02.9]}
32. fxg3 {[%clk 0:01:19.3]} 32... f5 {[%clk 0:00:03.4]} 33. Rd8 {[%clk
0:01:14.2]} 33... Nc5 {[%clk 0:00:01.4]} 34. Bxf5+ {[%clk 0:01:13.3]} 34... g6
{[%clk 0:00:02.3]} 35. Be6 {[%clk 0:01:06.1]} 35... e4 {[%clk 0:00:02]} 36. Nd4
{[%clk 0:01:05.2]} 36... Nxe6 {[%clk 0:00:01.3]} 37. dxe6 {[%clk 0:01:04.7]}
37... Rc7 {[%clk 0:00:02]} 38. Rxd6 {[%clk 0:01:03.3]} 38... Rxc4 {[%clk
0:00:02.2]} 39. e7 {[%clk 0:01:03.3]} 39... Kg7 {[%clk 0:00:02.5]} 1-0

[Event "Early-Titled-Tuesday-Blitz-May-14-2024"]
[Site "Chess.com"]
[Date "2024.05.14"]
[Round "6"]
[White "esrosenberg"]
[Black "Abund"]
[Result "0-1"]
[WhiteElo "2327"]
[BlackElo "2784"]
[TimeControl "180+1"]
[EndTime "9:08:00 PDT"]
[Termination "Abund won by resignation"]

1. e4 {[%clk 0:03:00.9]} 1... g6 {[%clk 0:03:00.9]} 2. d4 {[%clk 0:02:59.3]}
2... Bg7 {[%clk 0:03:01.3]} 3. Nc3 {[%clk 0:02:59.3]} 3... a6 {[%clk 0:02:58.4]}
4. Nf3 {[%clk 0:02:55.4]} 4... b5 {[%clk 0:02:58.4]} 5. Bd3 {[%clk 0:02:49.2]}
5... Bb7 {[%clk 0:02:51.9]} 6. Be3 {[%clk 0:02:47.8]} 6... d6 {[%clk 0:02:48.4]}
7. Qe2 {[%clk 0:02:42.9]} 7... Nd7 {[%clk 0:02:47.4]} 8. Rd1 {[%clk 0:02:28.9]}
8... Qc8 {[%clk 0:02:33.1]} 9. e5 {[%clk 0:02:14.5]} 9... dxe5 {[%clk
0:02:22.4]} 10. dxe5 {[%clk 0:02:12.2]} 10... Bxf3 {[%clk 0:01:52.4]} 11. Qxf3
{[%clk 0:01:45.1]} 11... Nxe5 {[%clk 0:01:51.8]} 12. Qd5 {[%clk 0:01:28]} 12...
c6 {[%clk 0:01:47.3]} 13. Qe4 {[%clk 0:01:18.3]} 13... Nxd3+ {[%clk 0:01:40.3]}
14. Rxd3 {[%clk 0:01:19.2]} 14... Nf6 {[%clk 0:01:40.4]} 15. Qb4 {[%clk
0:01:15.7]} 15... a5 {[%clk 0:01:32]} 16. Qc5 {[%clk 0:01:10.2]} 16... Nd7
{[%clk 0:01:25.9]} 17. Qg5 {[%clk 0:00:51.6]} 17... Ne5 {[%clk 0:01:20.2]} 18.
Rd1 {[%clk 0:00:39.3]} 18... O-O {[%clk 0:01:15.6]} 19. O-O {[%clk 0:00:33.4]}
19... Nc4 {[%clk 0:01:10.7]} 20. Qxe7 {[%clk 0:00:30.1]} 20... Nxb2 {[%clk
0:01:04.6]} 21. Ne4 {[%clk 0:00:29]} 21... Nxd1 {[%clk 0:00:58.6]} 22. Rxd1
{[%clk 0:00:29.9]} 22... Rd8 {[%clk 0:00:31.6]} 23. Rd3 {[%clk 0:00:16.7]} 23...
Rxd3 {[%clk 0:00:30.7]} 24. cxd3 {[%clk 0:00:17.6]} 24... Qd8 {[%clk 0:00:27.1]}
25. Qxd8+ {[%clk 0:00:11.1]} 25... Rxd8 {[%clk 0:00:27.2]} 26. Nc5 {[%clk
0:00:11.4]} 26... Bf8 {[%clk 0:00:24.6]} 0-1

[Event "Early-Titled-Tuesday-Blitz-May-14-2024"]
[Site "Chess.com"]
[Date "2024.05.14"]
[Round "6"]
[White "SAInt_666"]
[Black "TigrVShlyape"]
[Result "1/2-1/2"]
[WhiteElo "2798"]
[BlackElo "2949"]
[TimeControl "180+1"]
[EndTime "9:08:01 PDT"]
[Termination "Game drawn - insufficient material"]

1. e4 {[%clk 0:03:00.9]} 1... c5 {[%clk 0:02:57]} 2. Nf3 {[%clk 0:03:00]} 2...
e6 {[%clk 0:02:56.8]} 3. c3 {[%clk 0:02:59.9]} 3... Nf6 {[%clk 0:02:52.5]} 4. e5
{[%clk 0:02:59.6]} 4... Nd5 {[%clk 0:02:50.6]} 5. Bc4 {[%clk 0:03:00.2]} 5... b6
{[%clk 0:02:44.4]} 6. d4 {[%clk 0:02:55.7]} 6... cxd4 {[%clk 0:02:38.4]} 7. cxd4
{[%clk 0:02:51.1]} 7... Ba6 {[%clk 0:02:24.2]} 8. Bxa6 {[%clk 0:02:51.2]} 8...
Nxa6 {[%clk 0:02:23.9]} 9. O-O {[%clk 0:02:52.1]} 9... Be7 {[%clk 0:02:23.7]}
10. Nbd2 {[%clk 0:02:49.4]} 10... O-O {[%clk 0:02:22.9]} 11. Ne4 {[%clk
0:02:50.1]} 11... Nac7 {[%clk 0:02:20.7]} 12. Bg5 {[%clk 0:02:49]} 12... f6
{[%clk 0:02:20.2]} 13. exf6 {[%clk 0:02:37.3]} 13... gxf6 {[%clk 0:02:20.2]} 14.
Bh6 {[%clk 0:02:36.7]} 14... Rf7 {[%clk 0:02:20.6]} 15. Re1 {[%clk 0:02:31]}
15... Kh8 {[%clk 0:02:20.1]} 16. Nc3 {[%clk 0:02:30]} 16... Qg8 {[%clk
0:02:17.5]} 17. Bd2 {[%clk 0:02:19.2]} 17... Rg7 {[%clk 0:02:08.9]} 18. g3
{[%clk 0:02:18.3]} 18... Qf7 {[%clk 0:02:08.2]} 19. Rc1 {[%clk 0:02:14.2]} 19...
Qh5 {[%clk 0:02:02]} 20. Qe2 {[%clk 0:02:09.1]} 20... Rgg8 {[%clk 0:01:58.7]}
21. Qe4 {[%clk 0:02:05.3]} 21... Rac8 {[%clk 0:01:55.6]} 22. Nxd5 {[%clk
0:02:01.5]} 22... Nxd5 {[%clk 0:01:54.9]} 23. Rxc8 {[%clk 0:02:01.9]} 23... Rxc8
{[%clk 0:01:54.3]} 24. Rc1 {[%clk 0:02:02.5]} 24... Rxc1+ {[%clk 0:01:52]} 25.
Bxc1 {[%clk 0:02:03.4]} 25... Qg6 {[%clk 0:01:52.3]} 26. Qxg6 {[%clk 0:01:55.4]}
26... hxg6 {[%clk 0:01:52.1]} 27. h4 {[%clk 0:01:56.3]} 27... b5 {[%clk
0:01:51.5]} 28. Kf1 {[%clk 0:01:54.9]} 28... Nb4 {[%clk 0:01:51.3]} 29. Be3
{[%clk 0:01:43.6]} 29... Nxa2 {[%clk 0:01:50.1]} 30. d5 {[%clk 0:01:43.7]} 30...
a6 {[%clk 0:01:46.3]} 31. dxe6 {[%clk 0:01:43.7]} 31... dxe6 {[%clk 0:01:46.7]}
32. Nd4 {[%clk 0:01:42.6]} 32... e5 {[%clk 0:01:47]} 33. Nc6 {[%clk 0:01:42.9]}
33... Bd6 {[%clk 0:01:47]} 34. g4 {[%clk 0:01:24]} 34... Nb4 {[%clk 0:01:44.1]}
35. Nxb4 {[%clk 0:01:16.9]} 35... Bxb4 {[%clk 0:01:44.2]} 36. f4 {[%clk
0:01:17.8]} 36... exf4 {[%clk 0:01:40.3]} 37. Bxf4 {[%clk 0:01:18.7]} 37... Kg7
{[%clk 0:01:37.7]} 38. Ke2 {[%clk 0:01:16.3]} 38... a5 {[%clk 0:01:27.6]} 39.
Kd3 {[%clk 0:01:15.2]} 39... a4 {[%clk 0:01:27.1]} 40. Kd4 {[%clk 0:01:08.5]}
40... Kf7 {[%clk 0:01:22.9]} 41. Kd5 {[%clk 0:01:00.9]} 41... Be1 {[%clk
0:01:21.2]} 42. h5 {[%clk 0:01:01.5]} 42... gxh5 {[%clk 0:01:21]} 43. gxh5
{[%clk 0:01:02.4]} 43... Bf2 {[%clk 0:01:05]} 44. Bd2 {[%clk 0:00:57.7]} 44...
f5 {[%clk 0:00:55.2]} 45. Kc6 {[%clk 0:00:55.2]} 45... b4 {[%clk 0:00:51.8]} 46.
Bxb4 {[%clk 0:00:54.4]} 46... f4 {[%clk 0:00:52.1]} 47. Kb5 {[%clk 0:00:47.6]}
47... f3 {[%clk 0:00:51.8]} 48. Kxa4 {[%clk 0:00:48.2]} 48... Bd4 {[%clk
0:00:48.9]} 49. Be1 {[%clk 0:00:47.2]} 49... Bxb2 {[%clk 0:00:48.9]} 50. Kb3
{[%clk 0:00:47.1]} 50... Bd4 {[%clk 0:00:47.6]} 51. Kc4 {[%clk 0:00:47.1]} 51...
f2 {[%clk 0:00:48.1]} 52. Bxf2 {[%clk 0:00:46.9]} 52... Bxf2 {[%clk 0:00:49]}
53. h6 {[%clk 0:00:47.6]} 53... Kg6 {[%clk 0:00:49.1]} 54. h7 {[%clk 0:00:48.5]}
54... Kxh7 {[%clk 0:00:49.5]} 1/2-1/2

[Event "Early-Titled-Tuesday-Blitz-May-14-2024"]
[Site "Chess.com"]
[Date "2024.05.14"]
[Round "6"]
[White "Zarinur"]
[Black "crazy_but_lazy"]
[Result "1-0"]
[WhiteElo "2570"]
[BlackElo "2668"]
[TimeControl "180+1"]
[EndTime "9:08:07 PDT"]
[Termination "Zarinur won by resignation"]

1. e4 {[%clk 0:03:00.9]} 1... Nf6 {[%clk 0:02:55.9]} 2. e5 {[%clk 0:02:54]} 2...
Nd5 {[%clk 0:02:56.3]} 3. d4 {[%clk 0:02:53.3]} 3... d6 {[%clk 0:02:56.7]} 4. c4
{[%clk 0:02:53.5]} 4... Nb6 {[%clk 0:02:56.6]} 5. exd6 {[%clk 0:02:53.9]} 5...
exd6 {[%clk 0:02:56.5]} 6. Nc3 {[%clk 0:02:53.9]} 6... Be7 {[%clk 0:02:56.6]} 7.
Bd3 {[%clk 0:02:52.4]} 7... O-O {[%clk 0:02:53.3]} 8. Nge2 {[%clk 0:02:51.9]}
8... Bf6 {[%clk 0:02:50.5]} 9. O-O {[%clk 0:02:51.7]} 9... c6 {[%clk 0:02:43.7]}
10. Be3 {[%clk 0:02:40.8]} 10... d5 {[%clk 0:02:37.6]} 11. c5 {[%clk 0:02:38.8]}
11... N6d7 {[%clk 0:02:37.5]} 12. Rc1 {[%clk 0:02:35.2]} 12... Na6 {[%clk
0:02:36.2]} 13. a3 {[%clk 0:02:34.8]} 13... Nc7 {[%clk 0:02:35.2]} 14. Bb1
{[%clk 0:02:29.3]} 14... Ne6 {[%clk 0:02:32.3]} 15. Ng3 {[%clk 0:02:28.2]} 15...
g6 {[%clk 0:02:31.5]} 16. Bh6 {[%clk 0:02:23.5]} 16... Re8 {[%clk 0:02:23.3]}
17. Nce2 {[%clk 0:02:24]} 17... Ng7 {[%clk 0:02:08.7]} 18. f4 {[%clk 0:02:18]}
18... Nf8 {[%clk 0:02:05.8]} 19. f5 {[%clk 0:02:13.1]} 19... Bg5 {[%clk
0:02:05.9]} 20. Bxg7 {[%clk 0:01:54.5]} 20... Kxg7 {[%clk 0:02:02.2]} 21. Rc3
{[%clk 0:01:54.3]} 21... Nd7 {[%clk 0:01:27.7]} 22. Rcf3 {[%clk 0:01:51]} 22...
Nf6 {[%clk 0:01:28.1]} 23. Nf4 {[%clk 0:01:34.7]} 23... Bd7 {[%clk 0:00:41.9]}
24. Kh1 {[%clk 0:01:27.1]} 24... Qe7 {[%clk 0:00:20.6]} 25. Nd3 {[%clk
0:01:21.4]} 25... Bh4 {[%clk 0:00:04.5]} 26. Ne5 {[%clk 0:01:18.7]} 26... g5
{[%clk 0:00:03.3]} 27. Rb3 {[%clk 0:01:10.4]} 27... Rab8 {[%clk 0:00:02.6]} 28.
Nh5+ {[%clk 0:01:08.5]} 28... Nxh5 {[%clk 0:00:02.9]} 29. Qxh5 {[%clk
0:01:08.3]} 29... Qf6 {[%clk 0:00:03.6]} 30. g3 {[%clk 0:01:04.5]} 30... Bc8
{[%clk 0:00:02.4]} 31. gxh4 {[%clk 0:01:04]} 31... gxh4 {[%clk 0:00:03.3]} 32.
Rg1+ {[%clk 0:01:02.6]} 32... Kf8 {[%clk 0:00:03.9]} 33. Qxh7 {[%clk 0:01:01.4]}
33... b6 {[%clk 0:00:04.1]} 34. Rh3 {[%clk 0:00:54.4]} 34... bxc5 {[%clk
0:00:04.1]} 35. Qxh4 {[%clk 0:00:44.2]} 35... cxd4 {[%clk 0:00:04.3]} 36. Qxf6
{[%clk 0:00:44]} 1-0

[Event "Early-Titled-Tuesday-Blitz-May-14-2024"]
[Site "Chess.com"]
[Date "2024.05.14"]
[Round "6"]
[White "Happy1712Drummer"]
[Black "Moon_stone123"]
[Result "1/2-1/2"]
[WhiteElo "2450"]
[BlackElo "2611"]
[TimeControl "180+1"]
[EndTime "9:08:07 PDT"]
[Termination "Game drawn by agreement"]

1. e4 {[%clk 0:03:00.9]} 1... c6 {[%clk 0:02:54.2]} 2. d4 {[%clk 0:03:00.6]}
2... d5 {[%clk 0:02:55]} 3. Nc3 {[%clk 0:03:01]} 3... dxe4 {[%clk 0:02:51.6]} 4.
Nxe4 {[%clk 0:03:01.9]} 4... Nf6 {[%clk 0:02:52.3]} 5. Nxf6+ {[%clk 0:03:02.2]}
5... exf6 {[%clk 0:02:52]} 6. Be2 {[%clk 0:03:02.8]} 6... Bd6 {[%clk 0:02:48.6]}
7. Bf3 {[%clk 0:03:03.3]} 7... O-O {[%clk 0:02:47.9]} 8. Ne2 {[%clk 0:03:03.8]}
8... Re8 {[%clk 0:02:42.1]} 9. O-O {[%clk 0:03:03.8]} 9... Nd7 {[%clk
0:02:41.6]} 10. Bf4 {[%clk 0:03:00.8]} 10... Nf8 {[%clk 0:02:40.1]} 11. c4
{[%clk 0:02:56.1]} 11... Bf5 {[%clk 0:02:34.1]} 12. Bxd6 {[%clk 0:02:49]} 12...
Qxd6 {[%clk 0:02:33.5]} 13. Qb3 {[%clk 0:02:49.1]} 13... b6 {[%clk 0:02:22.1]}
14. Rfd1 {[%clk 0:02:47]} 14... Be4 {[%clk 0:02:17]} 15. d5 {[%clk 0:02:35]}
15... cxd5 {[%clk 0:01:59.4]} 16. cxd5 {[%clk 0:02:29.9]} 16... Bxf3 {[%clk
0:01:57]} 17. Qxf3 {[%clk 0:02:30.8]} 17... Rad8 {[%clk 0:01:53.8]} 18. Nc3
{[%clk 0:02:29.1]} 18... Ng6 {[%clk 0:01:52.8]} 19. Nb5 {[%clk 0:02:16]} 19...
Qd7 {[%clk 0:01:34.5]} 20. a4 {[%clk 0:02:11.6]} 20... Ne5 {[%clk 0:01:26.5]}
21. Qb3 {[%clk 0:02:11.4]} 21... h5 {[%clk 0:01:18.2]} 22. Rac1 {[%clk 0:02:10]}
22... Rc8 {[%clk 0:01:13.2]} 23. d6 {[%clk 0:02:10.2]} 23... Rxc1 {[%clk
0:01:08.1]} 24. Rxc1 {[%clk 0:02:10]} 24... a6 {[%clk 0:00:47]} 25. Nc7 {[%clk
0:02:02.5]} 25... Rd8 {[%clk 0:00:47.3]} 26. Rd1 {[%clk 0:01:44.1]} 26... Qc6
{[%clk 0:00:46.7]} 27. Qd5 {[%clk 0:01:22.6]} 27... Qxa4 {[%clk 0:00:40.6]} 28.
h3 {[%clk 0:00:49.7]} 28... h4 {[%clk 0:00:26.6]} 29. Rd4 {[%clk 0:00:43.7]}
29... Qa1+ {[%clk 0:00:26.5]} 30. Kh2 {[%clk 0:00:44]} 30... Qxb2 {[%clk
0:00:23.9]} 31. f4 {[%clk 0:00:36.6]} 31... Qf2 {[%clk 0:00:23.4]} 32. fxe5
{[%clk 0:00:34.9]} 32... Qg3+ {[%clk 0:00:23.6]} 33. Kg1 {[%clk 0:00:32.8]}
33... Qe1+ {[%clk 0:00:22.4]} 34. Kh2 {[%clk 0:00:32.9]} 34... Qg3+ {[%clk
0:00:23.3]} 35. Kg1 {[%clk 0:00:32.2]} 35... Qe1+ {[%clk 0:00:24.2]} 1/2-1/2

[Event "Early-Titled-Tuesday-Blitz-May-14-2024"]
[Site "Chess.com"]
[Date "2024.05.14"]
[Round "6"]
[White "brunomorado"]
[Black "MathiasWomacka"]
[Result "1-0"]
[WhiteElo "2378"]
[BlackElo "2518"]
[TimeControl "180+1"]
[EndTime "9:08:09 PDT"]
[Termination "brunomorado won by resignation"]

1. d4 {[%clk 0:02:59.6]} 1... Nf6 {[%clk 0:02:58]} 2. Nc3 {[%clk 0:02:55.5]}
2... d5 {[%clk 0:02:56.9]} 3. Bg5 {[%clk 0:02:55]} 3... Nbd7 {[%clk 0:02:56.5]}
4. Qd3 {[%clk 0:02:55]} 4... g6 {[%clk 0:02:50.1]} 5. f3 {[%clk 0:02:55.2]} 5...
c5 {[%clk 0:02:25.5]} 6. dxc5 {[%clk 0:02:56.1]} 6... Nxc5 {[%clk 0:02:23.6]} 7.
Qb5+ {[%clk 0:02:56.1]} 7... Ncd7 {[%clk 0:02:23.4]} 8. Bxf6 {[%clk 0:02:55.7]}
8... exf6 {[%clk 0:02:21.8]} 9. Nxd5 {[%clk 0:02:56]} 9... Bc5 {[%clk
0:02:18.8]} 10. O-O-O {[%clk 0:02:52]} 10... O-O {[%clk 0:02:18.5]} 11. e4
{[%clk 0:02:43.4]} 11... a6 {[%clk 0:02:17.1]} 12. Qb3 {[%clk 0:02:29.2]} 12...
b5 {[%clk 0:02:14]} 13. h4 {[%clk 0:02:26.1]} 13... Ne5 {[%clk 0:02:09.2]} 14.
h5 {[%clk 0:02:23]} 14... Be6 {[%clk 0:02:08.8]} 15. hxg6 {[%clk 0:02:22.3]}
15... hxg6 {[%clk 0:02:07.8]} 16. Ne2 {[%clk 0:02:13.7]} 16... Kg7 {[%clk
0:02:07.5]} 17. Nef4 {[%clk 0:02:13.5]} 17... Rh8 {[%clk 0:01:44.8]} 18. Nxe6+
{[%clk 0:01:59.4]} 18... fxe6 {[%clk 0:01:44.2]} 19. Rxh8 {[%clk 0:01:51.2]}
19... Kxh8 {[%clk 0:01:44.3]} 20. Nf4 {[%clk 0:01:51.1]} 20... Qe7 {[%clk
0:01:44.3]} 21. Qxe6 {[%clk 0:01:40.4]} 21... Be3+ {[%clk 0:01:30.6]} 22. Kb1
{[%clk 0:01:40.2]} 22... Rd8 {[%clk 0:01:21.2]} 23. Rxd8+ {[%clk 0:01:30.3]}
23... Qxd8 {[%clk 0:01:22.1]} 24. Nd5 {[%clk 0:01:30.6]} 24... Kg7 {[%clk
0:01:15.5]} 25. Qe7+ {[%clk 0:01:02.5]} 25... Qxe7 {[%clk 0:01:14.3]} 26. Nxe7
{[%clk 0:01:03.4]} 26... Bf2 {[%clk 0:00:45.5]} 27. Be2 {[%clk 0:00:56]} 27...
Kh6 {[%clk 0:00:43.3]} 28. Nd5 {[%clk 0:00:48.9]} 28... Kg5 {[%clk 0:00:43.1]}
29. Nc7 {[%clk 0:00:48.6]} 29... Kf4 {[%clk 0:00:40.5]} 30. Nd5+ {[%clk
0:00:43.9]} 30... Kg3 {[%clk 0:00:40.3]} 31. Nxf6 {[%clk 0:00:38.5]} 31... Kxg2
{[%clk 0:00:39.9]} 32. f4 {[%clk 0:00:38.3]} 32... Nc6 {[%clk 0:00:29.9]} 33. e5
{[%clk 0:00:35.4]} 33... Bg3 {[%clk 0:00:20]} 34. Bd3 {[%clk 0:00:34.6]} 34...
Bxf4 {[%clk 0:00:19]} 35. Be4+ {[%clk 0:00:34.8]} 35... Kf2 {[%clk 0:00:16.2]}
36. Bxc6 {[%clk 0:00:35.7]} 36... Bxe5 {[%clk 0:00:16.3]} 37. Ng4+ {[%clk
0:00:36.3]} 37... Ke2 {[%clk 0:00:16]} 38. Nxe5 {[%clk 0:00:37.2]} 1-0